[Event "Live Chess"]
[Site "Chess.com"]
[Date "2020.12.01"]
[Round "1"]
[White "FelixGerman"]
[Black "rimus11"]
[Result "1-0"]
[WhiteElo "1976"]
[BlackElo "1513"]
[TimeControl "2100+2"]
[EndTime "19:29:05 PST"]
[Termination "FelixGerman won by resignation"]

1. d4 {[%clk 0:34:50.9]} 1... d5 {[%clk 0:34:46.2]} 2. c4 {[%clk 0:34:34.3]}
2... c6 {[%clk 0:31:45.4]} 3. Nc3 {[%clk 0:34:12.7]} 3... Nf6 {[%clk 0:31:25.7]}
4. Nf3 {[%clk 0:32:55.2]} 4... Bf5 {[%clk 0:31:06.1]} 5. Bf4 {[%clk 0:29:33.7]}
5... e6 {[%clk 0:30:33]} 6. e3 {[%clk 0:28:17.2]} 6... Bd6 {[%clk 0:29:52]} 7.
Ne5 {[%clk 0:28:03.3]} 7... Bxe5 {[%clk 0:25:00.4]} 8. Bxe5 {[%clk 0:27:57.3]}
8... Nbd7 {[%clk 0:24:48.4]} 9. Bd6 {[%clk 0:27:36.3]} 9... b6 {[%clk
0:23:55.8]} 10. cxd5 {[%clk 0:27:07]} 10... exd5 {[%clk 0:23:34.4]} 11. Ba6
{[%clk 0:26:41.6]} 11... b5 {[%clk 0:22:54.8]} 12. Bb7 {[%clk 0:25:22.4]} 12...
Nb6 {[%clk 0:15:29.8]} 13. Bxc6+ {[%clk 0:24:54.9]} 13... Bd7 {[%clk 0:15:25]}
14. Bxa8 {[%clk 0:24:38.6]} 14... Nxa8 {[%clk 0:14:46.1]} 15. Bc5 {[%clk
0:22:30.8]} 15... a6 {[%clk 0:13:50.5]} 16. O-O {[%clk 0:22:22]} 16... Nc7
{[%clk 0:13:21.6]} 17. a4 {[%clk 0:21:28.3]} 17... Ne6 {[%clk 0:12:48.9]} 18.
axb5 {[%clk 0:20:44.5]} 18... Nxc5 {[%clk 0:12:00.1]} 19. dxc5 {[%clk 0:20:42]}
19... axb5 {[%clk 0:11:40.3]} 20. Nxd5 {[%clk 0:20:17.5]} 20... O-O {[%clk
0:09:35]} 21. Nxf6+ {[%clk 0:20:12.8]} 21... gxf6 {[%clk 0:09:34.8]} 22. Qd6
{[%clk 0:19:50.6]} 22... Qc8 {[%clk 0:08:20.9]} 23. b4 {[%clk 0:19:11.4]} 23...
Rd8 {[%clk 0:07:36.9]} 24. Qxf6 {[%clk 0:19:01.2]} 24... Be6 {[%clk 0:05:53]}
25. Rfd1 {[%clk 0:18:25.9]} 25... Re8 {[%clk 0:05:12.8]} 26. h4 {[%clk
0:18:00.4]} 26... Bg4 {[%clk 0:01:59.2]} 27. Rd5 {[%clk 0:17:19.7]} 27... h5
{[%clk 0:01:09.7]} 28. Qh6 {[%clk 0:17:02.7]} 28... Re6 {[%clk 0:00:51.1]} 29.
Rg5+ {[%clk 0:16:51.2]} 29... Rg6 {[%clk 0:00:51.7]} 30. Rxg6+ {[%clk
0:16:50.8]} 30... fxg6 {[%clk 0:00:52.4]} 31. Qxg6+ {[%clk 0:16:50.8]} 31... Kf8
{[%clk 0:00:50.3]} 32. Ra7 {[%clk 0:16:37.2]} 32... Be6 {[%clk 0:00:37]} 33.
Qg7+ {[%clk 0:16:26.6]} 1-0

[Event "Live Chess"]
[Site "Chess.com"]
[Date "2020.12.01"]
[Round "1"]
[White "chessboi2010"]
[Black "kyanofsky"]
[Result "0-1"]
[WhiteElo "1506"]
[BlackElo "1968"]
[TimeControl "2100+2"]
[EndTime "19:24:46 PST"]
[Termination "kyanofsky won by checkmate"]

1. e4 {[%clk 0:34:53]} 1... c5 {[%clk 0:34:58.4]} 2. Nf3 {[%clk 0:34:47.1]} 2...
g6 {[%clk 0:34:59]} 3. Bc4 {[%clk 0:34:15.8]} 3... Bg7 {[%clk 0:34:55.6]} 4. c3
{[%clk 0:34:05.2]} 4... Nc6 {[%clk 0:33:01.9]} 5. O-O {[%clk 0:33:37]} 5... e6
{[%clk 0:32:50.1]} 6. d4 {[%clk 0:31:04.3]} 6... cxd4 {[%clk 0:32:52]} 7. cxd4
{[%clk 0:30:46.3]} 7... d5 {[%clk 0:32:34.8]} 8. exd5 {[%clk 0:30:39.7]} 8...
exd5 {[%clk 0:32:34.8]} 9. Bb5 {[%clk 0:30:21.3]} 9... Ne7 {[%clk 0:32:24.3]}
10. Re1 {[%clk 0:29:46.6]} 10... O-O {[%clk 0:32:08.4]} 11. Bf4 {[%clk
0:28:13.9]} 11... Bg4 {[%clk 0:30:18.9]} 12. Be5 {[%clk 0:25:00.1]} 12... Nxe5
{[%clk 0:28:43.5]} 13. dxe5 {[%clk 0:24:10.6]} 13... Nc6 {[%clk 0:27:54.2]} 14.
Bxc6 {[%clk 0:22:30.8]} 14... bxc6 {[%clk 0:27:56.1]} 15. Nbd2 {[%clk
0:21:58.5]} 15... Re8 {[%clk 0:27:04.3]} 16. Qa4 {[%clk 0:21:43.3]} 16... Bd7
{[%clk 0:26:18.3]} 17. Qa3 {[%clk 0:20:31.4]} 17... Qc7 {[%clk 0:24:44.4]} 18.
Qd6 {[%clk 0:19:13.5]} 18... Qxd6 {[%clk 0:24:18.7]} 19. exd6 {[%clk 0:19:15.4]}
19... Bf8 {[%clk 0:24:19.4]} 20. Ne5 {[%clk 0:17:54.6]} 20... Rad8 {[%clk
0:22:03.9]} 21. Nxd7 {[%clk 0:16:10.8]} 21... Rxe1+ {[%clk 0:22:01]} 22. Rxe1
{[%clk 0:15:26.2]} 22... Rxd7 {[%clk 0:22:01]} 23. Re8 {[%clk 0:15:16.8]} 23...
Kg7 {[%clk 0:21:48.2]} 24. Rc8 {[%clk 0:14:26.6]} 24... Rxd6 {[%clk 0:21:24.3]}
25. Rc7 {[%clk 0:14:18.8]} 25... Re6 {[%clk 0:21:01.2]} 26. Rxa7 {[%clk
0:14:04.6]} 26... Re2 {[%clk 0:20:35.8]} 27. Nf1 {[%clk 0:13:31.7]} 27... Bc5
{[%clk 0:19:52.7]} 28. Rb7 {[%clk 0:12:42.7]} 28... Rxf2 {[%clk 0:19:21.5]} 29.
Rb3 {[%clk 0:09:26.7]} 29... Rf3+ {[%clk 0:17:49.1]} 30. Ne3 {[%clk 0:06:33.3]}
30... Rxe3 {[%clk 0:17:47]} 31. Rxe3 {[%clk 0:06:12.8]} 31... Bxe3+ {[%clk
0:17:48.9]} 32. Kf1 {[%clk 0:06:13.9]} 32... Bc1 {[%clk 0:17:27.8]} 33. b3
{[%clk 0:06:14.5]} 33... Ba3 {[%clk 0:17:28.6]} 34. Ke2 {[%clk 0:06:15.2]} 34...
Kf6 {[%clk 0:17:23.5]} 35. Kd3 {[%clk 0:06:14.7]} 35... Ke5 {[%clk 0:17:23.9]}
36. Kc3 {[%clk 0:06:14.6]} 36... c5 {[%clk 0:17:21.7]} 37. Kd3 {[%clk
0:06:12.4]} 37... f5 {[%clk 0:17:16.1]} 38. g3 {[%clk 0:06:04.1]} 38... f4
{[%clk 0:17:14.1]} 39. gxf4+ {[%clk 0:05:28.6]} 39... Kxf4 {[%clk 0:17:14.1]}
40. Ke2 {[%clk 0:05:26.9]} 40... g5 {[%clk 0:17:08.5]} 41. Kf2 {[%clk
0:05:22.2]} 41... g4 {[%clk 0:17:08.3]} 42. Kg2 {[%clk 0:05:13.2]} 42... Ke3
{[%clk 0:17:03.2]} 43. h3 {[%clk 0:05:15.1]} 43... gxh3+ {[%clk 0:17:03.3]} 44.
Kxh3 {[%clk 0:05:17]} 44... d4 {[%clk 0:17:04.5]} 45. Kg4 {[%clk 0:05:18.9]}
45... d3 {[%clk 0:17:05.8]} 46. Kh5 {[%clk 0:05:20.8]} 46... d2 {[%clk
0:17:07.2]} 47. Kh6 {[%clk 0:05:22.7]} 47... d1=Q {[%clk 0:17:07.2]} 48. Kxh7
{[%clk 0:05:24.6]} 48... Qg4 {[%clk 0:17:00.3]} 49. Kh6 {[%clk 0:05:25.1]} 49...
Kf4 {[%clk 0:16:56.8]} 50. Kh7 {[%clk 0:05:25.7]} 50... Kf5 {[%clk 0:16:54.7]}
51. Kh8 {[%clk 0:05:27.6]} 51... Kf6 {[%clk 0:16:55.1]} 52. Kh7 {[%clk
0:05:29.5]} 52... Qg7# {[%clk 0:16:55.6]} 0-1

[Event "Live Chess"]
[Site "Chess.com"]
[Date "2020.12.01"]
[Round "1"]
[White "ninjaforce"]
[Black "nmbrown2"]
[Result "1-0"]
[WhiteElo "1958"]
[BlackElo "1495"]
[TimeControl "2100+2"]
[EndTime "18:59:17 PST"]
[Termination "ninjaforce won by resignation"]

1. e4 {[%clk 0:35:01.1]} 1... c5 {[%clk 0:34:58.6]} 2. Nf3 {[%clk 0:34:57.2]}
2... Nc6 {[%clk 0:34:56.7]} 3. d4 {[%clk 0:34:56.6]} 3... cxd4 {[%clk
0:34:56.8]} 4. Nxd4 {[%clk 0:34:58.5]} 4... Nxd4 {[%clk 0:34:51.6]} 5. Qxd4
{[%clk 0:34:58.3]} 5... d6 {[%clk 0:34:46.6]} 6. c4 {[%clk 0:34:58.2]} 6... Nf6
{[%clk 0:34:24.6]} 7. Nc3 {[%clk 0:34:51.1]} 7... e6 {[%clk 0:33:57.7]} 8. Be2
{[%clk 0:34:47.1]} 8... Be7 {[%clk 0:33:57.1]} 9. O-O {[%clk 0:34:46.1]} 9...
O-O {[%clk 0:33:56.7]} 10. Be3 {[%clk 0:34:45.8]} 10... b6 {[%clk 0:33:52.7]}
11. Rfd1 {[%clk 0:34:36.7]} 11... Bb7 {[%clk 0:33:51]} 12. f3 {[%clk 0:34:36.9]}
12... Rc8 {[%clk 0:32:29.9]} 13. b3 {[%clk 0:34:11.8]} 13... d5 {[%clk 0:32:05]}
14. cxd5 {[%clk 0:33:48.5]} 14... Bc5 {[%clk 0:31:45.1]} 15. Qd2 {[%clk
0:33:38.5]} 15... Bxe3+ {[%clk 0:31:14.1]} 16. Qxe3 {[%clk 0:33:38]} 16... exd5
{[%clk 0:31:07.9]} 17. e5 {[%clk 0:32:56.8]} 17... Re8 {[%clk 0:30:38.7]} 18.
Qd4 {[%clk 0:30:58.2]} 18... Nd7 {[%clk 0:30:29.2]} 19. f4 {[%clk 0:29:01.9]}
19... Qc7 {[%clk 0:29:17.3]} 20. Nb5 {[%clk 0:27:08.3]} 20... Qc5 {[%clk
0:26:46.2]} 21. Nd6 {[%clk 0:26:03.1]} 21... Qxd4+ {[%clk 0:26:35.4]} 22. Rxd4
{[%clk 0:25:58]} 22... Rc2 {[%clk 0:26:06.8]} 23. Bd1 {[%clk 0:24:36.3]} 23...
Rec8 {[%clk 0:22:40.8]} 24. Bxc2 {[%clk 0:24:29.8]} 24... Rxc2 {[%clk 0:22:11]}
25. Nxb7 {[%clk 0:24:25.1]} 1-0

[Event "Live Chess"]
[Site "Chess.com"]
[Date "2020.12.01"]
[Round "1"]
[White "Evariel"]
[Black "BreatheChessAlways"]
[Result "0-1"]
[WhiteElo "1490"]
[BlackElo "1941"]
[TimeControl "2100+2"]
[EndTime "19:27:41 PST"]
[Termination "BreatheChessAlways won by resignation"]

1. e4 {[%clk 0:35:00.5]} 1... c5 {[%clk 0:34:45]} 2. c3 {[%clk 0:35:00.1]} 2...
Nf6 {[%clk 0:34:43.4]} 3. e5 {[%clk 0:34:48.4]} 3... Nd5 {[%clk 0:34:42.2]} 4.
d4 {[%clk 0:34:48.1]} 4... cxd4 {[%clk 0:34:42.8]} 5. cxd4 {[%clk 0:34:48.1]}
5... e6 {[%clk 0:34:43.6]} 6. Nc3 {[%clk 0:34:00.2]} 6... Nxc3 {[%clk
0:34:39.5]} 7. bxc3 {[%clk 0:33:59.9]} 7... d6 {[%clk 0:34:38.2]} 8. Nf3 {[%clk
0:33:53.4]} 8... Nc6 {[%clk 0:34:37.4]} 9. Bb5 {[%clk 0:33:42.3]} 9... Be7
{[%clk 0:33:43.2]} 10. exd6 {[%clk 0:30:17.5]} 10... Bxd6 {[%clk 0:33:40.4]} 11.
Bg5 {[%clk 0:30:10.4]} 11... Qc7 {[%clk 0:33:35.8]} 12. O-O {[%clk 0:28:38.9]}
12... O-O {[%clk 0:33:31.9]} 13. Qc2 {[%clk 0:28:03]} 13... h6 {[%clk
0:33:05.4]} 14. Be3 {[%clk 0:27:04.8]} 14... Bd7 {[%clk 0:32:56.4]} 15. Bd3
{[%clk 0:27:02.7]} 15... Kh8 {[%clk 0:32:50.3]} 16. Qd2 {[%clk 0:26:47.6]} 16...
f5 {[%clk 0:29:14.7]} 17. Bxh6 {[%clk 0:23:28.5]} 17... Be8 {[%clk 0:28:42.1]}
18. Bxg7+ {[%clk 0:21:11.8]} 18... Qxg7 {[%clk 0:28:33.6]} 19. Ng5 {[%clk
0:20:53.3]} 19... Rg8 {[%clk 0:27:52.9]} 20. f4 {[%clk 0:20:12]} 20... Bxf4
{[%clk 0:27:29.7]} 21. Rxf4 {[%clk 0:18:47.9]} 21... Qxg5 {[%clk 0:27:23.9]} 22.
g3 {[%clk 0:18:48.6]} 22... Ne7 {[%clk 0:27:11.5]} 23. Kh1 {[%clk 0:18:32.2]}
23... Bc6+ {[%clk 0:26:38.5]} 24. Kg1 {[%clk 0:18:28.2]} 24... Nd5 {[%clk
0:26:32.4]} 25. Raf1 {[%clk 0:17:36.8]} 25... Nxf4 {[%clk 0:26:16.6]} 26. Rxf4
{[%clk 0:17:36.6]} 26... Qh5 {[%clk 0:25:57.7]} 27. Kf1 {[%clk 0:16:14.6]} 27...
Rg4 {[%clk 0:25:23.6]} 28. Rf2 {[%clk 0:15:51.5]} 28... Qh3+ {[%clk 0:24:35.5]}
29. Ke1 {[%clk 0:14:11]} 29... Kg7 {[%clk 0:22:36.9]} 30. Qe3 {[%clk 0:13:05.1]}
30... Qh6 {[%clk 0:22:07.3]} 31. Qe5+ {[%clk 0:12:44.4]} 31... Qf6 {[%clk
0:21:58.4]} 32. Qc7+ {[%clk 0:12:37.7]} 32... Kg6 {[%clk 0:21:56.7]} 33. h4
{[%clk 0:11:34.2]} 33... Rh8 {[%clk 0:21:36.4]} 34. Be2 {[%clk 0:10:24.9]} 34...
Rh7 {[%clk 0:19:25]} 35. h5+ {[%clk 0:08:19.6]} 35... Kh6 {[%clk 0:18:41.4]} 36.
Qd6 {[%clk 0:08:11.2]} 36... Re4 {[%clk 0:17:58.8]} 37. g4 {[%clk 0:07:17.8]}
37... Qg5 {[%clk 0:16:53.1]} 38. Qf8+ {[%clk 0:06:50.2]} 38... Qg7 {[%clk
0:16:38.3]} 39. g5+ {[%clk 0:05:48.5]} 39... Kxg5 {[%clk 0:16:33.1]} 40. Rg2+
{[%clk 0:05:46.6]} 40... Rg4 {[%clk 0:16:26.2]} 41. Qd8+ {[%clk 0:04:32]} 41...
Qe7 {[%clk 0:16:05.4]} 42. Qa5 {[%clk 0:03:33]} 42... Rxg2 {[%clk 0:15:55.4]}
0-1

[Event "Live Chess"]
[Site "Chess.com"]
[Date "2020.12.01"]
[Round "1"]
[White "Mangonel"]
[Black "echecsmike"]
[Result "1-0"]
[WhiteElo "1940"]
[BlackElo "1446"]
[TimeControl "2100+2"]
[EndTime "19:46:32 PST"]
[Termination "Mangonel won on time"]

1. d4 {[%clk 0:34:01.5]} 1... d5 {[%clk 0:34:57.5]} 2. c4 {[%clk 0:30:31.2]}
2... c6 {[%clk 0:34:55]} 3. Nf3 {[%clk 0:29:13.9]} 3... Nf6 {[%clk 0:34:51.1]}
4. Nc3 {[%clk 0:29:06]} 4... e6 {[%clk 0:34:48.1]} 5. g3 {[%clk 0:29:05.8]} 5...
Be7 {[%clk 0:34:27.5]} 6. Bg2 {[%clk 0:28:26.2]} 6... Nbd7 {[%clk 0:34:17.6]} 7.
Qd3 {[%clk 0:27:02.9]} 7... b6 {[%clk 0:32:18]} 8. O-O {[%clk 0:24:44.4]} 8...
a5 {[%clk 0:32:01.9]} 9. Rd1 {[%clk 0:24:07.4]} 9... Ba6 {[%clk 0:31:57]} 10. b3
{[%clk 0:24:03.9]} 10... Bb4 {[%clk 0:28:25]} 11. Bb2 {[%clk 0:20:48.2]} 11...
O-O {[%clk 0:28:12.8]} 12. a3 {[%clk 0:17:24.3]} 12... Bxc3 {[%clk 0:28:07.8]}
13. Qxc3 {[%clk 0:17:26.2]} 13... b5 {[%clk 0:24:36.5]} 14. c5 {[%clk
0:16:44.7]} 14... b4 {[%clk 0:19:31.7]} 15. Qc2 {[%clk 0:15:40.5]} 15... Ne4
{[%clk 0:17:01.8]} 16. Re1 {[%clk 0:14:07.1]} 16... Ndf6 {[%clk 0:16:24.4]} 17.
Nd2 {[%clk 0:12:00]} 17... Nxd2 {[%clk 0:14:56.7]} 18. Qxd2 {[%clk 0:11:56.7]}
18... Re8 {[%clk 0:12:51.5]} 19. f3 {[%clk 0:09:12.5]} 19... Nd7 {[%clk
0:12:22.5]} 20. e4 {[%clk 0:08:20.9]} 20... dxe4 {[%clk 0:07:36.4]} 21. fxe4
{[%clk 0:08:13.7]} 21... Nf6 {[%clk 0:07:32]} 22. a4 {[%clk 0:06:53.3]} 22...
Qe7 {[%clk 0:06:47.4]} 23. Qg5 {[%clk 0:06:04.1]} 23... Rad8 {[%clk 0:05:43.6]}
24. Rac1 {[%clk 0:05:49.8]} 24... h6 {[%clk 0:05:09.4]} 25. Qh4 {[%clk
0:05:02.8]} 25... Nd7 {[%clk 0:03:24.5]} 26. Qg4 {[%clk 0:03:52.9]} 26... Nf6
{[%clk 0:02:50.6]} 27. Qf3 {[%clk 0:03:47.9]} 27... Nd7 {[%clk 0:02:38.5]} 28.
Rc2 {[%clk 0:02:50.4]} 28... e5 {[%clk 0:02:29.1]} 29. Bh3 {[%clk 0:00:52.4]}
29... exd4 {[%clk 0:02:01]} 30. Bxd4 {[%clk 0:00:49.1]} 30... Ne5 {[%clk
0:01:42]} 31. Bxe5 {[%clk 0:00:40.7]} 31... Qxe5 {[%clk 0:01:39.2]} 32. Qf2
{[%clk 0:00:11.3]} 32... Bc8 {[%clk 0:01:06]} 33. Bg2 {[%clk 0:00:11]} 33... Rd4
{[%clk 0:00:52.5]} 34. Qf4 {[%clk 0:00:05.5]} 34... Qxf4 {[%clk 0:00:42.4]} 35.
gxf4 {[%clk 0:00:07.4]} 35... Rd3 {[%clk 0:00:29.8]} 36. Rb2 {[%clk 0:00:06.2]}
36... Rc3 {[%clk 0:00:24]} 37. Bf1 {[%clk 0:00:05.8]} 37... Rxc5 {[%clk
0:00:21]} 38. Bc4 {[%clk 0:00:05.9]} 38... Rh5 {[%clk 0:00:11.6]} 39. Rd2 {[%clk
0:00:06.1]} 39... Rh4 {[%clk 0:00:04.3]} 40. e5 {[%clk 0:00:03.8]} 1-0

[Event "Live Chess"]
[Site "Chess.com"]
[Date "2020.12.01"]
[Round "1"]
[White "Kondsaga"]
[Black "pedrojrush"]
[Result "1-0"]
[WhiteElo "1934"]
[BlackElo "1239"]
[TimeControl "2100+2"]
[EndTime "19:02:11 PST"]
[Termination "Kondsaga won by checkmate"]

1. e4 {[%clk 0:34:49.3]} 1... e5 {[%clk 0:34:56.9]} 2. Nf3 {[%clk 0:34:41.8]}
2... Nc6 {[%clk 0:34:56.1]} 3. Bb5 {[%clk 0:34:35.5]} 3... Bd6 {[%clk 0:34:47]}
4. c3 {[%clk 0:34:07.9]} 4... Nf6 {[%clk 0:34:40.9]} 5. d3 {[%clk 0:33:45.8]}
5... O-O {[%clk 0:34:32.9]} 6. O-O {[%clk 0:33:39.1]} 6... b6 {[%clk 0:34:22.3]}
7. Re1 {[%clk 0:32:56.2]} 7... Bb7 {[%clk 0:33:43.4]} 8. d4 {[%clk 0:32:27.2]}
8... a6 {[%clk 0:33:28.9]} 9. Bxc6 {[%clk 0:32:09.6]} 9... dxc6 {[%clk
0:33:09.7]} 10. dxe5 {[%clk 0:32:01.3]} 10... Be7 {[%clk 0:32:12.5]} 11. exf6
{[%clk 0:30:50.2]} 11... Qxd1 {[%clk 0:31:41.3]} 12. Rxd1 {[%clk 0:30:39.6]}
12... Bxf6 {[%clk 0:31:41.6]} 13. Bf4 {[%clk 0:30:01]} 13... Bd8 {[%clk
0:30:40.7]} 14. Nbd2 {[%clk 0:28:25.6]} 14... f6 {[%clk 0:30:24.7]} 15. Nf1
{[%clk 0:28:01.2]} 15... c5 {[%clk 0:30:11.1]} 16. Ng3 {[%clk 0:27:47.5]} 16...
g5 {[%clk 0:29:37.4]} 17. Be3 {[%clk 0:27:27.1]} 17... Be7 {[%clk 0:28:41.2]}
18. Nf5 {[%clk 0:26:46.7]} 18... Bd6 {[%clk 0:27:57.3]} 19. Nxd6 {[%clk
0:26:37.9]} 19... cxd6 {[%clk 0:27:57.6]} 20. Rxd6 {[%clk 0:26:36.2]} 20... Bxe4
{[%clk 0:27:43.9]} 21. Rxb6 {[%clk 0:26:31.4]} 21... c4 {[%clk 0:27:22.7]} 22.
Nd2 {[%clk 0:25:35.2]} 22... Bd3 {[%clk 0:26:28.4]} 23. Bd4 {[%clk 0:25:27.4]}
23... f5 {[%clk 0:25:11.7]} 24. Rb7 {[%clk 0:25:21.4]} 24... h6 {[%clk
0:23:21.7]} 25. Rg7+ {[%clk 0:25:02.5]} 25... Kh8 {[%clk 0:23:20.5]} 26. Rxg5+
{[%clk 0:25:01.3]} 26... Kh7 {[%clk 0:23:19.1]} 27. Rg7+ {[%clk 0:25:02.1]}
27... Kh8 {[%clk 0:23:16.3]} 28. Re1 {[%clk 0:24:43.2]} 28... f4 {[%clk
0:22:39.7]} 29. Ree7 {[%clk 0:24:34.2]} 29... Rfe8 {[%clk 0:19:28.1]} 30. Rg4#
{[%clk 0:24:22]} 1-0

[Event "Live Chess"]
[Site "Chess.com"]
[Date "2020.12.01"]
[Round "1"]
[White "J3Chess24"]
[Black "victor6688"]
[Result "1-0"]
[WhiteElo "1889"]
[BlackElo "1054"]
[TimeControl "2100+2"]
[EndTime "18:42:55 PST"]
[Termination "J3Chess24 won by checkmate"]

1. e4 {[%clk 0:35:00.8]} 1... d5 {[%clk 0:34:59.1]} 2. exd5 {[%clk 0:35:01.2]}
2... Nf6 {[%clk 0:34:59.1]} 3. d4 {[%clk 0:34:57.7]} 3... Nxd5 {[%clk
0:34:53.5]} 4. c4 {[%clk 0:34:57.6]} 4... Nf6 {[%clk 0:34:28.3]} 5. Nc3 {[%clk
0:34:54.9]} 5... g6 {[%clk 0:34:25.1]} 6. Nf3 {[%clk 0:34:53.7]} 6... Bg7 {[%clk
0:34:08.8]} 7. Be2 {[%clk 0:34:52.5]} 7... Kf8 {[%clk 0:33:53.4]} 8. O-O {[%clk
0:34:35]} 8... e6 {[%clk 0:33:30]} 9. Re1 {[%clk 0:34:29.8]} 9... Nc6 {[%clk
0:32:52.8]} 10. Be3 {[%clk 0:34:19.3]} 10... Bd7 {[%clk 0:32:42.4]} 11. Rc1
{[%clk 0:34:12.2]} 11... Qe7 {[%clk 0:31:26.6]} 12. d5 {[%clk 0:33:40.8]} 12...
exd5 {[%clk 0:31:19.6]} 13. Nxd5 {[%clk 0:33:33.6]} 13... Nxd5 {[%clk
0:30:58.9]} 14. cxd5 {[%clk 0:33:30.6]} 14... Ne5 {[%clk 0:30:51.2]} 15. Bc5
{[%clk 0:33:28.4]} 15... Nxf3+ {[%clk 0:30:47.2]} 16. Bxf3 {[%clk 0:33:24.1]}
16... Qxc5 {[%clk 0:30:37.5]} 17. Rxc5 {[%clk 0:33:23]} 17... Bxb2 {[%clk
0:30:32.8]} 18. Rxc7 {[%clk 0:33:21.4]} 18... Bf5 {[%clk 0:30:32]} 19. Qb3
{[%clk 0:33:18.8]} 19... Bf6 {[%clk 0:30:25.9]} 20. d6 {[%clk 0:33:16.3]} 20...
Be6 {[%clk 0:29:37.6]} 21. Rxe6 {[%clk 0:33:15]} 21... fxe6 {[%clk 0:29:33.4]}
22. Qxe6 {[%clk 0:33:14.9]} 22... Re8 {[%clk 0:29:28.4]} 23. Qf7# {[%clk
0:33:14.9]} 1-0

[Event "Live Chess"]
[Site "Chess.com"]
[Date "2020.12.01"]
[Round "1"]
[White "JeffNorthSF"]
[Black "nicarmt"]
[Result "0-1"]
[WhiteElo "923"]
[BlackElo "1883"]
[TimeControl "2100+2"]
[EndTime "19:30:17 PST"]
[Termination "nicarmt won by resignation"]

1. c4 {[%clk 0:34:35.5]} 1... e5 {[%clk 0:34:55.4]} 2. g3 {[%clk 0:34:34.9]}
2... Nf6 {[%clk 0:34:50.6]} 3. Bg2 {[%clk 0:34:35.6]} 3... c6 {[%clk 0:34:19.9]}
4. e4 {[%clk 0:33:33.5]} 4... Be7 {[%clk 0:34:02.4]} 5. Ne2 {[%clk 0:33:27.6]}
5... O-O {[%clk 0:33:31]} 6. d4 {[%clk 0:33:00.1]} 6... d6 {[%clk 0:31:37.8]} 7.
O-O {[%clk 0:32:02.7]} 7... Be6 {[%clk 0:30:52.9]} 8. d5 {[%clk 0:31:41.2]} 8...
cxd5 {[%clk 0:30:09.3]} 9. cxd5 {[%clk 0:31:38.4]} 9... Bd7 {[%clk 0:29:24.7]}
10. Nbc3 {[%clk 0:30:25.8]} 10... Na6 {[%clk 0:29:08.9]} 11. a3 {[%clk
0:30:00.6]} 11... Nc7 {[%clk 0:27:44]} 12. Bd2 {[%clk 0:27:12.2]} 12... b5
{[%clk 0:26:59.9]} 13. b4 {[%clk 0:27:08.9]} 13... a5 {[%clk 0:25:07.4]} 14. Be3
{[%clk 0:26:44.5]} 14... Na6 {[%clk 0:24:33]} 15. Qb3 {[%clk 0:25:11.1]} 15...
Qc7 {[%clk 0:21:59.7]} 16. Rfc1 {[%clk 0:24:10.9]} 16... Qb7 {[%clk 0:21:07.6]}
17. bxa5 {[%clk 0:21:52.1]} 17... Bd8 {[%clk 0:20:46.6]} 18. Nxb5 {[%clk
0:15:41.6]} 18... Qxb5 {[%clk 0:20:20.5]} 19. Qxb5 {[%clk 0:13:55.7]} 19... Bxb5
{[%clk 0:20:17.5]} 20. Nc3 {[%clk 0:13:56.8]} 20... Bd7 {[%clk 0:19:33]} 21. Bf1
{[%clk 0:13:55.5]} 21... Bxa5 {[%clk 0:19:27.5]} 22. a4 {[%clk 0:13:47.6]} 22...
Bxc3 {[%clk 0:19:25.7]} 23. Rxc3 {[%clk 0:13:47.4]} 23... Nxe4 {[%clk
0:19:25.8]} 24. Rc4 {[%clk 0:13:40.2]} 24... Nec5 {[%clk 0:19:13.4]} 25. a5
{[%clk 0:13:36.8]} 25... Bb5 {[%clk 0:19:00.3]} 26. Rc3 {[%clk 0:13:08.7]} 26...
Bxf1 {[%clk 0:18:52.8]} 27. Kxf1 {[%clk 0:13:09.8]} 27... Rfb8 {[%clk
0:18:50.2]} 28. f4 {[%clk 0:12:34.9]} 28... exf4 {[%clk 0:18:42.7]} 29. Bxf4
{[%clk 0:12:33.1]} 29... Ne4 {[%clk 0:18:38]} 30. Rc6 {[%clk 0:12:22.6]} 30...
h6 {[%clk 0:18:11.7]} 31. Rac1 {[%clk 0:12:17.1]} 31... Rd8 {[%clk 0:16:54.8]}
32. Rb6 {[%clk 0:11:38.3]} 32... g5 {[%clk 0:16:07.5]} 33. Be3 {[%clk
0:11:32.1]} 33... Nac5 {[%clk 0:16:01]} 34. Bd4 {[%clk 0:10:44.4]} 34... Rxa5
{[%clk 0:15:55]} 35. Kg2 {[%clk 0:09:50]} 35... Nd3 {[%clk 0:14:28]} 36. Rcb1
{[%clk 0:09:36.7]} 36... Raa8 {[%clk 0:13:25.6]} 37. Rd1 {[%clk 0:08:29.7]}
37... Ra2+ {[%clk 0:13:17.9]} 38. Kf1 {[%clk 0:08:14.5]} 38... Ndc5 {[%clk
0:12:25.3]} 39. Kg1 {[%clk 0:07:44.1]} 39... Nd2 {[%clk 0:11:37.5]} 40. Bf6
{[%clk 0:06:13.9]} 40... Nf3+ {[%clk 0:10:56.4]} 41. Kf1 {[%clk 0:06:00.8]}
41... Nxh2+ {[%clk 0:10:54.7]} 42. Ke1 {[%clk 0:06:02.1]} 42... Re8+ {[%clk
0:10:54.8]} 0-1